[Event "LEM Niedersachsen-Meister 2025"]
[Site "Verden"]
[Date "2025.01.03"]
[Round "4.15"]
[White "Gaertner, Alessandro"]
[Black "Celik, Abdullah"]
[Result "1-0"]
[ECO "A21"]
[WhiteElo "1970"]
[BlackElo "2032"]
[Annotator "RC"]
[PlyCount "121"]
[EventDate "2024.12.27"]
[EventType "swiss"]
[EventCountry "GER"]
[SourceTitle "playchess.com"]
[Source "ChessBase"]
[SourceQuality "1"]
[TimeControl "40/5400+30:1800+30"]

1. c4 {[%emt 0:00:10]} e5 {[%emt 0:00:02]} 2. Nc3 {[%emt 0:00:13]} Bb4 {[%emt 0:00:04]} 3. g3 {[%emt 0:00:33]} Bxc3 {[%emt 0:00:21]} 4. bxc3 {[%emt 0:00:19]} d6 {[%emt 0:00:14]} 5. Bg2 {[%emt 0:00:12]} Nd7 {[%emt 0:01:13]} 6. d3 {[%emt 0:00:26]} Ne7 {[%emt 0:00:56]} 7. Nf3 {[%emt 0:01:09]} O-O {[%emt 0:00:14]} 8. O-O {[%emt 0:00:21]} h6 {[%emt 0:05:25]} 9. Rb1 {[%emt 0:02:50]} f5 {[%emt 0:05:13]} 10. Ne1 {[%emt 0:03:10]} c6 {[%emt 0:03:35]} 11. Nc2 {[%emt 1:26:37]} g5 {[%emt 0:07:18]} 12. f4 {[%emt 0:00:00]} Ng6 {[%emt 0:01:03]} 13. e3 {[%emt 0:00:00]} Nf6 {[%emt 0:01:53]} 14. Ba3 {[%emt 0:00:00]} Rf7 {[%emt 0:01:02]} 15. Qe2 {[%emt 0:00:00]} Rg7 {[%emt 0:05:15]} 16. Kh1 {[%emt 0:00:00]} Kh7 {[%emt 0:11:30]} 17. Rbe1 {[%emt 0:00:00]} e4 {[%emt 0:05:52]} 18. Nd4 {[%emt 0:00:00]} g4 {[%emt 0:04:08]} 19. dxe4 {[%emt 0:00:00]} fxe4 {[%emt 0:00:05]} 20. Rd1 {[%emt 0:00:00]} a6 {[%emt 0:14:32]} 21. Qc2 {[%emt 0:00:00]} c5 {[%emt 0:02:21]} 22. Nb3 {[%emt 0:01:47]} Qe7 {[%emt 0:02:56]} 23. Qd2 {[%emt 0:01:19]} Ne8 {[%emt 0:04:31]} 24. Qd5 {[%emt 0:01:15]} Rb8 {[%emt 0:08:24]} 25. Bxe4 {[%emt 0:01:35]} b6 {[%emt 0:00:38]} 26. Qd3 {[%emt 0:00:42]} Nf6 {[%emt 0:01:51]} 27. Bg2 {[%emt 0:00:24]} Bb7 {[%emt 0:00:54]} 28. Rfe1 {[%emt 0:00:33]} Ne4 {[%emt 0:00:17]} 29. Kg1 {[%emt 0:00:24]} Re8 {[%emt 0:03:03]} 30. Nd2 {[%emt 0:00:30]} Nf8 {[%emt 0:04:35]} 31. Nxe4 {[%emt 0:00:40]} Bxe4 {[%emt 0:00:06]} 32. Bxe4+ {[%emt 0:00:31]} Qxe4 {[%emt 0:00:04]} 33. Qxe4+ {[%emt 0:00:23]} Rxe4 {[%emt 0:00:04]} 34. Rxd6 {[%emt 0:00:10]} Rg6 {[%emt 0:00:48]} 35. Rd8 {[%emt 0:00:56]} Kg7 {[%emt 0:00:49]} 36. Kf2 {[%emt 0:00:18]} Rxc4 {[%emt 0:00:28]} 37. e4 {[%emt 0:00:43]} Ra4 {[%emt 0:00:21]} 38. Bb2 {[%emt 0:00:41]} Rxa2 {[%emt 0:00:12]} 39. Re2 {[%emt 0:00:06]} c4 {[%emt 0:01:08]} 40. e5 {[%emt 0:00:38]} Rc6 {[%emt 0:01:03]} 41. f5 {[%emt 0:16:53]} Rc5 {[%emt 0:02:04]} 42. Ke1 {[%emt 0:02:18]} Rb5 {[%emt 0:00:30]} 43. Rdd2 {[%emt 0:00:27]} Nh7 {[%emt 0:06:08]} 44. f6+ {[%emt 0:10:29]} Kg6 {[%emt 0:02:33]} 45. Rd7 {[%emt 0:01:35]} Ng5 {[%emt 0:04:42]} 46. Rg7+ {[%emt 0:00:27]} Kh5 {[%emt 0:01:03]} 47. Rxg5+ {[%emt 0:00:20]} Kxg5 {[%emt 0:01:41]} 48. f7 {[%emt 0:00:09]} Raxb2 {[%emt 0:00:33]} 49. f8=Q {[%emt 0:00:52]} Rxe2+ {[%emt 0:00:08]} 50. Kxe2 {[%emt 0:00:04]} Rxe5+ {[%emt 0:00:05]} 51. Kd2 {[%emt 0:00:06]} Rf5 {[%emt 0:05:25]} 52. Qd8+ {[%emt 0:00:06]} Rf6 {[%emt 0:00:05]} 53. Qd5+ {[%emt 0:00:11]} Kg6 {[%emt 0:00:18]} 54. Qxc4 {[%emt 0:00:09]} b5 {[%emt 0:00:05]} 55. Qxg4+ {[%emt 0:00:09]} Kf7 {[%emt 0:00:09]} 56. Kd3 {[%emt 0:00:19]} Re6 {[%emt 0:02:47]} 57. Qf5+ {[%emt 0:00:23]} Ke7 {[%emt 0:00:10]} 58. h4 {[%emt 0:00:23]} Rd6+ {[%emt 0:00:35]} 59. Kc2 {[%emt 0:00:04]} Rf6 {[%emt 0:00:20]} 60. Qe5+ {[%emt 0:00:08]} Re6 {[%emt 0:00:07]} 61. Qg7+ {[%emt 0:00:15]} 1-0